[Event "Titled Tuesday Blitz February 01 B 2022"]
[White "Drygalov, Andrey"]
[Black "Garriga Cazorla, Pere"]
[WhiteFideId "24171735"]
[BlackFideId "32011601"]
[WhiteElo "2540"]
[BlackElo "2458"]
[Result "1-0"]
[Round "06"]
[TimeControl "180+1"]
[Date "2022.02.01"]
[WhiteClock "0:00:52"]
[BlackClock "0:00:42"]

1. e4 {[%clk 0:03:00]}  c5 {[%clk 0:02:55]} 2. Nf3 {[%clk 0:03:00]}  d6 {[%clk 0:02:55]} 3. d4 {[%clk 0:02:59]}  cxd4 {[%clk 0:02:56]} 4. Nxd4 {[%clk 0:02:59]}  Nf6 {[%clk 0:02:56]} 5. Nc3 {[%clk 0:03:00]}  a6 {[%clk 0:02:55]} 6. Be3 {[%clk 0:03:00]}  e5 {[%clk 0:02:55]} 7. Nb3 {[%clk 0:03:00]}  Be6 {[%clk 0:02:55]} 8. f3 {[%clk 0:03:01]}  h5 {[%clk 0:02:55]} 9. Qd2 {[%clk 0:03:00]}  Nbd7 {[%clk 0:02:55]} 10. Nd5 {[%clk 0:03:01]}  Bxd5 {[%clk 0:02:55]} 11. exd5 {[%clk 0:03:01]}  g6 {[%clk 0:02:56]} 12. Na5 {[%clk 0:03:01]}  Rb8 {[%clk 0:02:55]} 13. c4 {[%clk 0:03:00]}  Bg7 {[%clk 0:02:55]} 14. Be2 {[%clk 0:03:01]}  O-O {[%clk 0:02:52]} 15. O-O {[%clk 0:03:01]}  e4 {[%clk 0:02:53]} 16. Rac1 {[%clk 0:03:01]}  exf3 {[%clk 0:02:52]} 17. gxf3 {[%clk 0:03:02]}  Re8 {[%clk 0:02:51]} 18. b4 {[%clk 0:02:33]}  Nh7 {[%clk 0:02:47]} 19. Rfe1 {[%clk 0:02:27]}  Qh4 {[%clk 0:02:31]} 20. Bf2 {[%clk 0:02:19]}  Qf6 {[%clk 0:02:30]} 21. f4 {[%clk 0:01:46]}  Qf5 {[%clk 0:02:18]} 22. c5 {[%clk 0:01:35]}  Ndf6 {[%clk 0:02:05]} 23. Bf3 {[%clk 0:01:28]}  Ne4 {[%clk 0:01:47]} 24. Bxe4 {[%clk 0:01:22]}  Rxe4 {[%clk 0:01:47]} 25. Rxe4 {[%clk 0:01:23]}  Qxe4 {[%clk 0:01:48]} 26. c6 {[%clk 0:01:24]}  bxc6 {[%clk 0:01:35]} 27. dxc6 {[%clk 0:01:25]}  Rc8 {[%clk 0:01:06]} 28. Qxd6 {[%clk 0:01:14]}  Bf8 {[%clk 0:01:05]} 29. Qd7 {[%clk 0:01:13]}  Qxf4 {[%clk 0:01:05]} 30. Rd1 {[%clk 0:01:08]}  Ng5 {[%clk 0:00:44]} 31. Qxc8 {[%clk 0:00:56]}  Nh3+ {[%clk 0:00:42]} 32. Qxh3 {[%clk 0:00:52]} 1-0


[Site "https://www.chess.com"]

[Event "Titled Tuesday Blitz February 01 B 2022"]
[White "Golubka, Petro"]
[Black "Jobava, Baadur"]
[WhiteFideId "14114224"]
[BlackFideId "13601520"]
[WhiteElo "2392"]
[BlackElo "2617"]
[Result "0-1"]
[Round "06"]
[TimeControl "180+1"]
[Date "2022.02.01"]
[WhiteClock "0:00:53"]
[BlackClock "0:00:44"]

1. a3 {[%clk 0:03:00]}  d5 {[%clk 0:02:58]} 2. h3 {[%clk 0:02:57]}  e5 {[%clk 0:02:57]} 3. g3 {[%clk 0:02:57]}  c5 {[%clk 0:02:55]} 4. Bg2 {[%clk 0:02:58]}  Nc6 {[%clk 0:02:55]} 5. b3 {[%clk 0:02:59]}  f5 {[%clk 0:02:55]} 6. Bb2 {[%clk 0:02:59]}  Nf6 {[%clk 0:02:55]} 7. d3 {[%clk 0:02:59]}  Bd6 {[%clk 0:02:55]} 8. e3 {[%clk 0:02:59]}  O-O {[%clk 0:02:55]} 9. Nd2 {[%clk 0:02:58]}  Kh8 {[%clk 0:02:53]} 10. Ne2 {[%clk 0:02:54]}  f4 {[%clk 0:02:53]} 11. c4 {[%clk 0:02:49]}  fxe3 {[%clk 0:02:51]} 12. fxe3 {[%clk 0:02:50]}  d4 {[%clk 0:02:50]} 13. e4 {[%clk 0:02:33]}  a5 {[%clk 0:02:44]} 14. Nf3 {[%clk 0:02:31]}  a4 {[%clk 0:02:43]} 15. bxa4 {[%clk 0:02:32]}  Qa5+ {[%clk 0:02:41]} 16. Qd2 {[%clk 0:02:32]}  Qxd2+ {[%clk 0:02:40]} 17. Kxd2 {[%clk 0:02:29]}  Rxa4 {[%clk 0:02:41]} 18. g4 {[%clk 0:02:27]}  Kg8 {[%clk 0:02:40]} 19. Rhf1 {[%clk 0:02:23]}  Bd7 {[%clk 0:02:37]} 20. Nh4 {[%clk 0:02:14]}  g6 {[%clk 0:02:35]} 21. g5 {[%clk 0:02:04]}  Ne8 {[%clk 0:02:29]} 22. Rxf8+ {[%clk 0:02:05]}  Bxf8 {[%clk 0:02:22]} 23. Nf3 {[%clk 0:02:05]}  Nd6 {[%clk 0:02:20]} 24. Kc2 {[%clk 0:02:02]}  Be6 {[%clk 0:02:15]} 25. Nd2 {[%clk 0:01:59]}  Be7 {[%clk 0:02:12]} 26. h4 {[%clk 0:01:58]}  Bd8 {[%clk 0:02:12]} 27. Nb3 {[%clk 0:01:55]}  b6 {[%clk 0:02:10]} 28. Nec1 {[%clk 0:01:46]}  h6 {[%clk 0:02:02]} 29. gxh6 {[%clk 0:01:45]}  Bxh4 {[%clk 0:02:02]} 30. Nd2 {[%clk 0:01:41]}  Bg5 {[%clk 0:01:59]} 31. Ncb3 {[%clk 0:01:41]}  Bxh6 {[%clk 0:01:58]} 32. Rh1 {[%clk 0:01:37]}  Kg7 {[%clk 0:01:58]} 33. Bh3 {[%clk 0:01:37]}  Bxh3 {[%clk 0:01:55]} 34. Rxh3 {[%clk 0:01:38]}  Bxd2 {[%clk 0:01:55]} 35. Kxd2 {[%clk 0:01:34]}  Ra8 {[%clk 0:01:54]} 36. Bc1 {[%clk 0:01:32]}  Rh8 {[%clk 0:01:54]} 37. Rg3 {[%clk 0:01:33]}  Rh2+ {[%clk 0:01:52]} 38. Kd1 {[%clk 0:01:33]}  Rh1+ {[%clk 0:01:45]} 39. Kc2 {[%clk 0:01:33]}  Rh2+ {[%clk 0:01:46]} 40. Kd1 {[%clk 0:01:33]}  Nd8 {[%clk 0:01:41]} 41. Bg5 {[%clk 0:01:32]}  Ne6 {[%clk 0:01:39]} 42. Bd2 {[%clk 0:01:30]}  Rh1+ {[%clk 0:01:30]} 43. Kc2 {[%clk 0:01:30]}  Rh2 {[%clk 0:01:31]} 44. Kd1 {[%clk 0:01:30]}  Nf4 {[%clk 0:01:24]} 45. a4 {[%clk 0:01:28]}  Ne2 {[%clk 0:01:12]} 46. Rf3 {[%clk 0:01:15]}  Nc3+ {[%clk 0:01:12]} 47. Bxc3 {[%clk 0:01:10]}  dxc3 {[%clk 0:01:13]} 48. Kc1 {[%clk 0:01:06]}  Rb2 {[%clk 0:01:08]} 49. Na1 {[%clk 0:01:05]}  Ra2 {[%clk 0:01:08]} 50. Nb3 {[%clk 0:01:04]}  Nb7 {[%clk 0:00:57]} 51. Rg3 {[%clk 0:00:59]}  Rxa4 {[%clk 0:00:56]} 52. Kc2 {[%clk 0:00:59]}  Ra3 {[%clk 0:00:54]} 53. Rg5 {[%clk 0:00:55]}  Kf6 {[%clk 0:00:53]} 54. Rg3 {[%clk 0:00:54]}  Na5 {[%clk 0:00:50]} 55. Nxa5 {[%clk 0:00:53]}  bxa5 {[%clk 0:00:50]} 56. Rf3+ {[%clk 0:00:53]}  Ke7 {[%clk 0:00:50]} 57. Rg3 {[%clk 0:00:53]}  Kf6 {[%clk 0:00:49]} 58. Rf3+ {[%clk 0:00:54]}  Kg7 {[%clk 0:00:49]} 59. Rg3 {[%clk 0:00:54]}  a4 {[%clk 0:00:49]} 60. Rg5 {[%clk 0:00:53]}  Kf6 {[%clk 0:00:49]} 61. Rg3 {[%clk 0:00:53]}  Rb3 {[%clk 0:00:49]} 62. Rf3+ {[%clk 0:00:53]}  Kg7 {[%clk 0:00:49]} 63. Rg3 {[%clk 0:00:53]}  Rb8 {[%clk 0:00:45]} 64. Rg1 {[%clk 0:00:52]}  a3 {[%clk 0:00:44]} 65. Ra1 {[%clk 0:00:52]}  Ra8 {[%clk 0:00:44]} 66. Kxc3 {[%clk 0:00:52]}  a2 {[%clk 0:00:43]} 67. Kb2 {[%clk 0:00:52]}  g5 {[%clk 0:00:43]} 68. Rg1 {[%clk 0:00:51]}  a1=Q+ {[%clk 0:00:43]} 69. Rxa1 {[%clk 0:00:52]}  Rxa1 {[%clk 0:00:43]} 70. Kxa1 {[%clk 0:00:53]}  g4 {[%clk 0:00:44]} 0-1


[Site "https://www.chess.com"]

[Event "Titled Tuesday Blitz February 01 B 2022"]
[White "Isajevsky, Anton"]
[Black "Sadhwani, Raunak"]
[WhiteFideId "4142500"]
[BlackFideId "35093487"]
[WhiteElo "2510"]
[BlackElo "2616"]
[Result "0-1"]
[Round "06"]
[TimeControl "180+1"]
[Date "2022.02.01"]
[WhiteClock "0:00:05"]
[BlackClock "0:00:12"]

1. c4 {[%clk 0:02:59]}  Nf6 {[%clk 0:03:00]} 2. Nc3 {[%clk 0:02:59]}  g6 {[%clk 0:03:01]} 3. g3 {[%clk 0:02:56]}  Bg7 {[%clk 0:03:01]} 4. Bg2 {[%clk 0:02:56]}  O-O {[%clk 0:03:02]} 5. e3 {[%clk 0:02:57]}  e5 {[%clk 0:03:01]} 6. Nge2 {[%clk 0:02:56]}  d6 {[%clk 0:03:02]} 7. O-O {[%clk 0:02:56]}  Nc6 {[%clk 0:03:01]} 8. d3 {[%clk 0:02:54]}  Be6 {[%clk 0:03:00]} 9. Nd5 {[%clk 0:02:54]}  Qd7 {[%clk 0:02:54]} 10. Rb1 {[%clk 0:02:54]}  Bh3 {[%clk 0:02:54]} 11. b4 {[%clk 0:02:51]}  Nxd5 {[%clk 0:02:51]} 12. cxd5 {[%clk 0:02:50]}  Bxg2 {[%clk 0:02:51]} 13. Kxg2 {[%clk 0:02:50]}  Ne7 {[%clk 0:02:52]} 14. e4 {[%clk 0:02:50]}  f5 {[%clk 0:02:52]} 15. Rb3 {[%clk 0:02:25]}  f4 {[%clk 0:02:41]} 16. gxf4 {[%clk 0:02:17]}  Qg4+ {[%clk 0:02:41]} 17. Ng3 {[%clk 0:02:02]}  Qxd1 {[%clk 0:02:42]} 18. Rxd1 {[%clk 0:02:02]}  exf4 {[%clk 0:02:43]} 19. Nf1 {[%clk 0:02:02]}  g5 {[%clk 0:02:43]} 20. f3 {[%clk 0:01:46]}  Ng6 {[%clk 0:02:43]} 21. Bb2 {[%clk 0:01:42]}  Rf7 {[%clk 0:02:42]} 22. h3 {[%clk 0:01:28]}  h5 {[%clk 0:02:42]} 23. Nh2 {[%clk 0:01:17]}  Kh7 {[%clk 0:02:32]} 24. Bxg7 {[%clk 0:01:12]}  Kxg7 {[%clk 0:02:33]} 25. d4 {[%clk 0:01:12]}  Re8 {[%clk 0:02:29]} 26. Rc1 {[%clk 0:01:07]}  Ree7 {[%clk 0:02:26]} 27. b5 {[%clk 0:01:05]}  Kf6 {[%clk 0:01:34]} 28. Ra3 {[%clk 0:01:00]}  b6 {[%clk 0:01:34]} 29. Rc6 {[%clk 0:00:49]}  Kg7 {[%clk 0:01:25]} 30. Rxa7 {[%clk 0:00:48]}  Rd7 {[%clk 0:01:21]} 31. a4 {[%clk 0:00:44]}  Rfe7 {[%clk 0:01:10]} 32. a5 {[%clk 0:00:30]}  bxa5 {[%clk 0:01:11]} 33. Rxa5 {[%clk 0:00:29]}  Rd8 {[%clk 0:00:49]} 34. Nf1 {[%clk 0:00:24]}  g4 {[%clk 0:00:46]} 35. hxg4 {[%clk 0:00:23]}  hxg4 {[%clk 0:00:47]} 36. fxg4 {[%clk 0:00:23]}  Rxe4 {[%clk 0:00:47]} 37. Rxc7+ {[%clk 0:00:20]}  Kh6 {[%clk 0:00:48]} 38. b6 {[%clk 0:00:18]}  Rf8 {[%clk 0:00:45]} 39. Kf2 {[%clk 0:00:14]}  Rxd4 {[%clk 0:00:37]} 40. Rb5 {[%clk 0:00:11]}  Re4 {[%clk 0:00:23]} 41. b7 {[%clk 0:00:12]}  Ree8 {[%clk 0:00:24]} 42. Rb6 {[%clk 0:00:08]}  f3 {[%clk 0:00:13]} 43. Rxd6 {[%clk 0:00:06]}  Re2+ {[%clk 0:00:13]} 44. Kg3 {[%clk 0:00:06]}  Rg2+ {[%clk 0:00:13]} 45. Kh3 {[%clk 0:00:06]}  Rh8 {[%clk 0:00:12]} 46. Ng3 {[%clk 0:00:05]}  Kg5+ {[%clk 0:00:11]} 47. Nh5 {[%clk 0:00:05]}  Nf4# {[%clk 0:00:12]} 0-1


[Site "https://www.chess.com"]

[Event "Titled Tuesday Blitz February 01 B 2022"]
[White "Kamsky, Gata"]
[Black "Loay, Sameer"]
[WhiteFideId "2000024"]
[BlackFideId "8104239"]
[WhiteElo "2645"]
[BlackElo "2040"]
[Result "1/2-1/2"]
[Round "06"]
[TimeControl "180+1"]
[Date "2022.02.01"]
[WhiteClock "0:00:11"]
[BlackClock "0:00:07"]

1. d4 {[%clk 0:03:00]}  Nf6 {[%clk 0:02:59]} 2. Nf3 {[%clk 0:02:50]}  g6 {[%clk 0:02:59]} 3. c3 {[%clk 0:02:48]}  Bg7 {[%clk 0:02:59]} 4. Bg5 {[%clk 0:02:47]}  O-O {[%clk 0:02:59]} 5. Nbd2 {[%clk 0:02:46]}  h6 {[%clk 0:02:59]} 6. Bh4 {[%clk 0:02:45]}  d6 {[%clk 0:02:59]} 7. e4 {[%clk 0:02:45]}  Nc6 {[%clk 0:02:59]} 8. Bd3 {[%clk 0:02:42]}  e5 {[%clk 0:02:59]} 9. h3 {[%clk 0:02:26]}  g5 {[%clk 0:02:45]} 10. Bg3 {[%clk 0:02:25]}  Nh5 {[%clk 0:02:45]} 11. dxe5 {[%clk 0:02:06]}  Nxg3 {[%clk 0:02:44]} 12. fxg3 {[%clk 0:02:06]}  Nxe5 {[%clk 0:02:38]} 13. Nxe5 {[%clk 0:02:06]}  Bxe5 {[%clk 0:02:39]} 14. Qf3 {[%clk 0:02:05]}  Qf6 {[%clk 0:02:37]} 15. Qe3 {[%clk 0:01:51]}  Be6 {[%clk 0:02:17]} 16. Nc4 {[%clk 0:01:40]}  Bxc3+ {[%clk 0:02:10]} 17. bxc3 {[%clk 0:01:20]}  Qxc3+ {[%clk 0:02:11]} 18. Kf2 {[%clk 0:01:20]}  Bxc4 {[%clk 0:02:08]} 19. Bxc4 {[%clk 0:01:20]}  Qxc4 {[%clk 0:02:08]} 20. Rhc1 {[%clk 0:01:19]}  Qe6 {[%clk 0:02:06]} 21. h4 {[%clk 0:01:07]}  g4 {[%clk 0:01:41]} 22. Rab1 {[%clk 0:01:05]}  c6 {[%clk 0:01:29]} 23. Rxb7 {[%clk 0:01:03]}  c5 {[%clk 0:01:16]} 24. Kg1 {[%clk 0:00:59]}  Rae8 {[%clk 0:01:16]} 25. Kh2 {[%clk 0:00:53]}  Qxa2 {[%clk 0:01:11]} 26. Qxh6 {[%clk 0:00:51]}  Qe6 {[%clk 0:01:08]} 27. Qg5+ {[%clk 0:00:50]}  Kh7 {[%clk 0:01:00]} 28. Rxa7 {[%clk 0:00:47]}  Qxe4 {[%clk 0:00:56]} 29. Rd1 {[%clk 0:00:38]}  Re6 {[%clk 0:00:50]} 30. Rd7 {[%clk 0:00:31]}  Qg6 {[%clk 0:00:31]} 31. Qxg6+ {[%clk 0:00:22]}  Kxg6 {[%clk 0:00:31]} 32. R1xd6 {[%clk 0:00:22]}  Rc8 {[%clk 0:00:28]} 33. Rd5 {[%clk 0:00:20]}  f6 {[%clk 0:00:19]} 34. Rd3 {[%clk 0:00:19]}  c4 {[%clk 0:00:19]} 35. Rc3 {[%clk 0:00:20]}  Kf5 {[%clk 0:00:18]} 36. Rd4 {[%clk 0:00:19]}  Rec6 {[%clk 0:00:18]} 37. Rf4+ {[%clk 0:00:18]}  Ke5 {[%clk 0:00:18]} 38. Rxg4 {[%clk 0:00:18]}  f5 {[%clk 0:00:19]} 39. Rf4 {[%clk 0:00:19]}  Rc5 {[%clk 0:00:17]} 40. h5 {[%clk 0:00:17]}  Rh8 {[%clk 0:00:17]} 41. Rh4 {[%clk 0:00:17]}  Kf6 {[%clk 0:00:17]} 42. Kh3 {[%clk 0:00:16]}  Kg5 {[%clk 0:00:17]} 43. Rcxc4 {[%clk 0:00:15]}  Rxc4 {[%clk 0:00:17]} 44. Rxc4 {[%clk 0:00:15]}  Rxh5+ {[%clk 0:00:10]} 45. Rh4 {[%clk 0:00:16]}  Kg6 {[%clk 0:00:04]} 46. Kh2 {[%clk 0:00:14]}  Kg5 {[%clk 0:00:05]} 47. Rxh5+ {[%clk 0:00:12]}  Kxh5 {[%clk 0:00:05]} 48. Kg1 {[%clk 0:00:13]}  Kg4 {[%clk 0:00:04]} 49. Kf2 {[%clk 0:00:13]}  f4 {[%clk 0:00:05]} 50. gxf4 {[%clk 0:00:13]}  Kxf4 {[%clk 0:00:05]} 51. Ke2 {[%clk 0:00:12]}  Kg3 {[%clk 0:00:05]} 52. Kf1 {[%clk 0:00:12]}  Kg4 {[%clk 0:00:06]} 53. Kf2 {[%clk 0:00:12]}  Kf4 {[%clk 0:00:06]} 54. g4 {[%clk 0:00:11]}  Kxg4 {[%clk 0:00:07]} 1/2-1/2


[Site "https://www.chess.com"]

[Event "Titled Tuesday Blitz February 01 B 2022"]
[White "Kollars, Dmitrij"]
[Black "Janaszak, Dawid"]
[WhiteFideId "12909572"]
[BlackFideId "1119206"]
[WhiteElo "2584"]
[BlackElo "2199"]
[Result "1-0"]
[Round "06"]
[TimeControl "180+1"]
[Date "2022.02.01"]
[WhiteClock "0:00:07"]
[BlackClock "0:00:02"]

1. c4 {[%clk 0:03:00]}  g6 {[%clk 0:02:57]} 2. d4 {[%clk 0:02:56]}  Bg7 {[%clk 0:02:57]} 3. Nc3 {[%clk 0:02:56]}  Nf6 {[%clk 0:02:53]} 4. e4 {[%clk 0:02:56]}  d6 {[%clk 0:02:54]} 5. h3 {[%clk 0:02:55]}  O-O {[%clk 0:02:51]} 6. Be3 {[%clk 0:02:55]}  a6 {[%clk 0:02:49]} 7. Nf3 {[%clk 0:02:48]}  c5 {[%clk 0:02:36]} 8. dxc5 {[%clk 0:02:43]}  Qa5 {[%clk 0:02:35]} 9. Qa4 {[%clk 0:02:39]}  Qxa4 {[%clk 0:02:32]} 10. Nxa4 {[%clk 0:02:40]}  Nxe4 {[%clk 0:02:32]} 11. cxd6 {[%clk 0:02:40]}  Nd7 {[%clk 0:01:28]} 12. Bd3 {[%clk 0:02:38]}  Nxd6 {[%clk 0:01:26]} 13. O-O {[%clk 0:02:25]}  b5 {[%clk 0:01:26]} 14. cxb5 {[%clk 0:02:17]}  axb5 {[%clk 0:01:27]} 15. Nc3 {[%clk 0:02:17]}  Nc4 {[%clk 0:01:09]} 16. Bc1 {[%clk 0:01:58]}  Ba6 {[%clk 0:01:05]} 17. Nd5 {[%clk 0:01:55]}  Nxb2 {[%clk 0:00:36]} 18. Bxb2 {[%clk 0:01:28]}  Bxb2 {[%clk 0:00:37]} 19. Rab1 {[%clk 0:01:28]}  Bf6 {[%clk 0:00:36]} 20. Rfe1 {[%clk 0:01:12]}  Nc5 {[%clk 0:00:32]} 21. Bxb5 {[%clk 0:01:09]}  Bxb5 {[%clk 0:00:28]} 22. Rxb5 {[%clk 0:01:10]}  Ne6 {[%clk 0:00:26]} 23. Re2 {[%clk 0:01:02]}  Ra3 {[%clk 0:00:25]} 24. Rb3 {[%clk 0:00:42]}  Rfa8 {[%clk 0:00:22]} 25. Rxa3 {[%clk 0:00:41]}  Rxa3 {[%clk 0:00:23]} 26. Rc2 {[%clk 0:00:36]}  Kg7 {[%clk 0:00:19]} 27. Kf1 {[%clk 0:00:33]}  h6 {[%clk 0:00:12]} 28. Rd2 {[%clk 0:00:32]}  Ra7 {[%clk 0:00:11]} 29. Ke2 {[%clk 0:00:27]}  Nc5 {[%clk 0:00:12]} 30. Nxf6 {[%clk 0:00:25]}  Kxf6 {[%clk 0:00:11]} 31. Rc2 {[%clk 0:00:23]}  Ne6 {[%clk 0:00:10]} 32. Rb2 {[%clk 0:00:20]}  Ra3 {[%clk 0:00:10]} 33. g3 {[%clk 0:00:17]}  h5 {[%clk 0:00:09]} 34. h4 {[%clk 0:00:18]}  Nc5 {[%clk 0:00:07]} 35. Rc2 {[%clk 0:00:12]}  Ne4 {[%clk 0:00:07]} 36. Nd2 {[%clk 0:00:10]}  Nxd2 {[%clk 0:00:06]} 37. Kxd2 {[%clk 0:00:11]}  Ke5 {[%clk 0:00:05]} 38. Kc1 {[%clk 0:00:12]}  f5 {[%clk 0:00:05]} 39. Kb2 {[%clk 0:00:12]}  Ra8 {[%clk 0:00:05]} 40. Re2+ {[%clk 0:00:12]}  Kd6 {[%clk 0:00:04]} 41. f4 {[%clk 0:00:12]}  Rb8+ {[%clk 0:00:03]} 42. Ka1 {[%clk 0:00:12]}  Rc8 {[%clk 0:00:04]} 43. Re3 {[%clk 0:00:12]}  Rc1+ {[%clk 0:00:03]} 44. Kb2 {[%clk 0:00:13]}  Rc8 {[%clk 0:00:04]} 45. a4 {[%clk 0:00:12]}  Ra8 {[%clk 0:00:04]} 46. Ka3 {[%clk 0:00:11]}  Rc8 {[%clk 0:00:04]} 47. a5 {[%clk 0:00:10]}  Rc7 {[%clk 0:00:03]} 48. Kb4 {[%clk 0:00:10]}  Rb7+ {[%clk 0:00:03]} 49. Ka4 {[%clk 0:00:11]}  Rb1 {[%clk 0:00:03]} 50. Rc3 {[%clk 0:00:09]}  Ra1+ {[%clk 0:00:02]} 51. Kb4 {[%clk 0:00:09]}  e5 {[%clk 0:00:02]} 52. fxe5+ {[%clk 0:00:07]}  Kxe5 {[%clk 0:00:03]} 53. Kb5 {[%clk 0:00:07]}  Kd4 {[%clk 0:00:03]} 54. Rc4+ {[%clk 0:00:07]}  Kd5 {[%clk 0:00:02]} 55. Rc5+ {[%clk 0:00:07]}  Kd4 {[%clk 0:00:02]} 56. Rc4+ {[%clk 0:00:07]}  Kd5 {[%clk 0:00:03]} 57. Ra4 {[%clk 0:00:07]}  Rb1+ {[%clk 0:00:02]} 58. Rb4 {[%clk 0:00:08]}  Ra1 {[%clk 0:00:02]} 59. a6 {[%clk 0:00:08]}  f4 {[%clk 0:00:02]} 60. Rxf4 {[%clk 0:00:07]}  Ke5 {[%clk 0:00:02]} 61. Ra4 {[%clk 0:00:06]}  Rb1+ {[%clk 0:00:03]} 62. Rb4 {[%clk 0:00:06]}  Ra1 {[%clk 0:00:03]} 63. Kb6 {[%clk 0:00:07]}  Kf5 {[%clk 0:00:02]} 64. a7 {[%clk 0:00:07]} 1-0


[Site "https://www.chess.com"]

[Event "Titled Tuesday Blitz February 01 B 2022"]
[White "Lenderman, Aleksandr"]
[Black "Bodnar, Nikolay"]
[WhiteFideId "2021285"]
[BlackFideId "14106469"]
[WhiteElo "2651"]
[BlackElo "2296"]
[Result "1-0"]
[Round "06"]
[TimeControl "180+1"]
[Date "2022.02.01"]
[WhiteClock "0:01:37"]
[BlackClock "0:00:10"]

1. d4 {[%clk 0:03:00]}  Nf6 {[%clk 0:02:59]} 2. c4 {[%clk 0:03:00]}  e6 {[%clk 0:03:00]} 3. Nf3 {[%clk 0:03:00]}  d5 {[%clk 0:02:59]} 4. Nc3 {[%clk 0:03:00]}  Bb4 {[%clk 0:02:59]} 5. e3 {[%clk 0:02:56]}  O-O {[%clk 0:02:59]} 6. Bd3 {[%clk 0:02:55]}  dxc4 {[%clk 0:02:55]} 7. Bxc4 {[%clk 0:02:56]}  c5 {[%clk 0:02:56]} 8. O-O {[%clk 0:02:56]}  cxd4 {[%clk 0:02:56]} 9. exd4 {[%clk 0:02:56]}  b6 {[%clk 0:02:57]} 10. Ne5 {[%clk 0:02:53]}  Bb7 {[%clk 0:02:51]} 11. Bg5 {[%clk 0:02:53]}  Nbd7 {[%clk 0:02:47]} 12. Qe2 {[%clk 0:02:50]}  Bxc3 {[%clk 0:02:37]} 13. bxc3 {[%clk 0:02:51]}  Qc7 {[%clk 0:02:37]} 14. Rac1 {[%clk 0:02:48]}  Nxe5 {[%clk 0:02:35]} 15. dxe5 {[%clk 0:02:48]}  Ne4 {[%clk 0:02:30]} 16. Bf4 {[%clk 0:02:47]}  Rfd8 {[%clk 0:01:53]} 17. Bd3 {[%clk 0:02:34]}  Qc6 {[%clk 0:01:22]} 18. f3 {[%clk 0:02:30]}  Nc5 {[%clk 0:01:21]} 19. Bb1 {[%clk 0:02:27]}  Ba6 {[%clk 0:01:20]} 20. c4 {[%clk 0:02:28]}  Qa4 {[%clk 0:01:03]} 21. Be3 {[%clk 0:02:08]}  Rac8 {[%clk 0:00:48]} 22. Rc3 {[%clk 0:02:06]}  Nd7 {[%clk 0:00:42]} 23. Bg5 {[%clk 0:02:02]}  Re8 {[%clk 0:00:37]} 24. Rfc1 {[%clk 0:01:51]}  Qa5 {[%clk 0:00:33]} 25. Qd3 {[%clk 0:01:49]}  Nf8 {[%clk 0:00:32]} 26. f4 {[%clk 0:01:45]}  Bb7 {[%clk 0:00:29]} 27. Qg3 {[%clk 0:01:42]}  Qc5+ {[%clk 0:00:27]} 28. Kh1 {[%clk 0:01:40]}  Ng6 {[%clk 0:00:25]} 29. h4 {[%clk 0:01:38]}  h6 {[%clk 0:00:16]} 30. Bxh6 {[%clk 0:01:37]}  gxh6 {[%clk 0:00:11]} 31. Bxg6 {[%clk 0:01:37]}  fxg6 {[%clk 0:00:10]} 32. Qxg6+ {[%clk 0:01:37]} 1-0


[Site "https://www.chess.com"]

[Event "Titled Tuesday Blitz February 01 B 2022"]
[White "Niemann, Hans Moke"]
[Black "Blohberger, Felix"]
[WhiteFideId "2093596"]
[BlackFideId "1632051"]
[WhiteElo "2636"]
[BlackElo "2474"]
[Result "1/2-1/2"]
[Round "06"]
[TimeControl "180+1"]
[Date "2022.02.01"]
[WhiteClock "0:00:47"]
[BlackClock "0:00:05"]

1. d4 {[%clk 0:03:00]}  Nf6 {[%clk 0:02:58]} 2. Nc3 {[%clk 0:03:01]}  d5 {[%clk 0:02:56]} 3. Bf4 {[%clk 0:02:58]}  c5 {[%clk 0:02:54]} 4. e4 {[%clk 0:02:58]}  Nxe4 {[%clk 0:02:52]} 5. Nxe4 {[%clk 0:02:58]}  dxe4 {[%clk 0:02:52]} 6. dxc5 {[%clk 0:02:59]}  Qa5+ {[%clk 0:02:48]} 7. c3 {[%clk 0:02:59]}  Qxc5 {[%clk 0:02:48]} 8. Qa4+ {[%clk 0:02:59]}  Nc6 {[%clk 0:02:46]} 9. Qxe4 {[%clk 0:03:00]}  Bf5 {[%clk 0:02:44]} 10. Qe3 {[%clk 0:02:43]}  e6 {[%clk 0:02:42]} 11. Nf3 {[%clk 0:02:43]}  Be7 {[%clk 0:02:32]} 12. Be2 {[%clk 0:02:43]}  O-O {[%clk 0:02:28]} 13. O-O {[%clk 0:02:43]}  Rfd8 {[%clk 0:02:24]} 14. Rfd1 {[%clk 0:02:43]}  h6 {[%clk 0:02:20]} 15. h3 {[%clk 0:02:42]}  a6 {[%clk 0:02:20]} 16. a4 {[%clk 0:02:26]}  Bc2 {[%clk 0:02:08]} 17. Rdc1 {[%clk 0:02:22]}  Bf5 {[%clk 0:01:43]} 18. Rd1 {[%clk 0:02:03]}  Bc2 {[%clk 0:01:35]} 19. Rd2 {[%clk 0:02:03]}  Qxe3 {[%clk 0:01:26]} 20. Bxe3 {[%clk 0:02:04]}  Rxd2 {[%clk 0:01:25]} 21. Nxd2 {[%clk 0:02:05]}  Rd8 {[%clk 0:01:22]} 22. Kf1 {[%clk 0:02:05]}  Bd3 {[%clk 0:01:22]} 23. Bxd3 {[%clk 0:02:05]}  Rxd3 {[%clk 0:01:23]} 24. Ke2 {[%clk 0:02:05]}  Rd8 {[%clk 0:01:22]} 25. Nc4 {[%clk 0:02:04]}  f6 {[%clk 0:01:12]} 26. b4 {[%clk 0:02:04]}  Rc8 {[%clk 0:01:00]} 27. Nb6 {[%clk 0:01:59]}  Rc7 {[%clk 0:01:00]} 28. Na8 {[%clk 0:01:57]}  Rc8 {[%clk 0:00:55]} 29. Nb6 {[%clk 0:01:58]}  Rc7 {[%clk 0:00:56]} 30. b5 {[%clk 0:01:56]}  Ne5 {[%clk 0:00:51]} 31. f4 {[%clk 0:01:54]}  Nc4 {[%clk 0:00:45]} 32. Nxc4 {[%clk 0:01:53]}  Rxc4 {[%clk 0:00:46]} 33. Kd3 {[%clk 0:01:53]}  Rc7 {[%clk 0:00:44]} 34. Rb1 {[%clk 0:01:49]}  axb5 {[%clk 0:00:37]} 35. axb5 {[%clk 0:01:48]}  Kf7 {[%clk 0:00:28]} 36. Ra1 {[%clk 0:01:46]}  Bc5 {[%clk 0:00:26]} 37. Bxc5 {[%clk 0:01:41]}  Rxc5 {[%clk 0:00:27]} 38. c4 {[%clk 0:01:42]}  Rc7 {[%clk 0:00:24]} 39. Ra7 {[%clk 0:01:38]}  Ke7 {[%clk 0:00:22]} 40. Kd4 {[%clk 0:01:37]}  Kd6 {[%clk 0:00:21]} 41. b6 {[%clk 0:01:36]}  Rd7 {[%clk 0:00:19]} 42. Ra8 {[%clk 0:01:19]}  Kc6+ {[%clk 0:00:19]} 43. Kc3 {[%clk 0:01:20]}  Kxb6 {[%clk 0:00:19]} 44. Re8 {[%clk 0:01:21]}  Rd6 {[%clk 0:00:10]} 45. Re7 {[%clk 0:01:19]}  g5 {[%clk 0:00:10]} 46. Rf7 {[%clk 0:01:19]}  f5 {[%clk 0:00:08]} 47. fxg5 {[%clk 0:01:18]}  hxg5 {[%clk 0:00:09]} 48. Rg7 {[%clk 0:01:17]}  Kc5 {[%clk 0:00:03]} 49. Rc7+ {[%clk 0:01:18]}  Rc6 {[%clk 0:00:01]} 50. Rxb7 {[%clk 0:01:18]}  Kd6 {[%clk 0:00:01]} 51. Kb4 {[%clk 0:01:16]}  Ke5 {[%clk 0:00:01]} 52. c5 {[%clk 0:01:16]}  Rc8 {[%clk 0:00:02]} 53. Kb5 {[%clk 0:01:16]}  g4 {[%clk 0:00:01]} 54. hxg4 {[%clk 0:01:14]}  fxg4 {[%clk 0:00:02]} 55. c6 {[%clk 0:01:15]}  Kf4 {[%clk 0:00:02]} 56. Rd7 {[%clk 0:01:11]}  Kg3 {[%clk 0:00:02]} 57. Rd2 {[%clk 0:01:12]}  e5 {[%clk 0:00:02]} 58. Re2 {[%clk 0:01:13]}  Kf4 {[%clk 0:00:02]} 59. Kb6 {[%clk 0:01:13]}  e4 {[%clk 0:00:02]} 60. Kb7 {[%clk 0:01:14]}  Re8 {[%clk 0:00:03]} 61. c7 {[%clk 0:01:14]}  e3 {[%clk 0:00:04]} 62. c8=Q {[%clk 0:01:15]}  Rxc8 {[%clk 0:00:04]} 63. Kxc8 {[%clk 0:01:16]}  Ke4 {[%clk 0:00:04]} 64. Kd7 {[%clk 0:01:12]}  Kd3 {[%clk 0:00:05]} 65. Re1 {[%clk 0:01:12]}  Kd2 {[%clk 0:00:04]} 66. Ra1 {[%clk 0:01:07]}  e2 {[%clk 0:00:04]} 67. Ra2+ {[%clk 0:01:06]}  Ke3 {[%clk 0:00:05]} 68. Ra1 {[%clk 0:01:05]}  Kf2 {[%clk 0:00:05]} 69. Ke6 {[%clk 0:00:57]}  g3 {[%clk 0:00:03]} 70. Kf5 {[%clk 0:00:52]}  Kxg2 {[%clk 0:00:03]} 71. Kg4 {[%clk 0:00:46]}  Kf2 {[%clk 0:00:04]} 72. Kh3 {[%clk 0:00:47]}  g2 {[%clk 0:00:04]} 73. Kh2 {[%clk 0:00:47]}  e1=Q {[%clk 0:00:04]} 74. Rxe1 {[%clk 0:00:47]}  Kxe1 {[%clk 0:00:05]} 75. Kxg2 {[%clk 0:00:47]} 1/2-1/2


[Site "https://www.chess.com"]